bitfinex-derivatives/quotes_BTCF0:USTF0_20230106
["timestamp","ask_amount","ask_price","bid_price","bid_amount"]
[1672973316657,1.16754827,16842.0,16841.0,9.321e-05]
[1672973316867,0.3,16841.0,16838.0,0.08900921]
[1672973317075,0.3,16841.0,16837.0,0.88117383]
[1672973317076,0.56684827,16839.0,16837.0,0.88117383]
[1672973317390,0.56684827,16839.0,16837.0,1.01467719]
[1672973317596,0.56684827,16839.0,16838.0,0.08900921]
[1672973317808,0.56684827,16839.0,16838.0,0.48900921]
[1672973318233,0.57284827,16839.0,16838.0,0.62251257]
[1672973318544,0.006,16839.0,16838.0,0.62251257]
[1672973319275,0.006,16839.0,16838.0,0.73651257]
[1672973320117,0.56684827,16840.0,16838.0,0.62251257]
[1672973320433,0.56684827,16840.0,16839.0,0.3007]
[1672973322332,0.57284827,16840.0,16839.0,0.3007]
[1672973322743,0.56884827,16840.0,16839.0,0.3357]
[1672973326014,0.56884827,16840.0,16839.0,0.035]
[1672973343550,0.86954827,16840.0,16839.0,0.035]
[1672973349452,0.56884827,16840.0,16839.0,0.035]
[1672973366480,0.56884827,16840.0,16839.0,0.03479921]
[1672973369117,0.56884827,16840.0,16839.0,0.12380842]
[1672973371649,0.56877972,16840.0,16839.0,0.12380842]
[1672973372910,0.56877972,16840.0,16839.0,0.03479921]
[1672973375423,0.56877972,16840.0,16839.0,0.12380842]
[1672973375638,0.56877972,16840.0,16839.0,0.03479921]
[1672973383527,0.56677972,16840.0,16838.0,0.7007]
[1672973383748,0.60177972,16840.0,16839.0,0.002]
[1672973385100,0.80177972,16840.0,16839.0,0.002]
[1672973385310,0.76877972,16840.0,16838.0,0.82570921]
[1672973385845,0.80177972,16840.0,16839.0,0.002]
[1672973386152,0.80177972,16840.0,16838.0,0.92321257]
[1672973386371,0.76877972,16840.0,16838.0,0.82570921]
[1672973386568,0.76877972,16840.0,16838.0,0.65851257]
[1672973386779,0.76677972,16840.0,16838.0,0.48900921]
[1672973386987,0.80177972,16840.0,16839.0,0.002]
[1672973388155,0.80177972,16840.0,16838.0,0.78970921]
[1672973388156,0.76877972,16840.0,16838.0,0.82570921]
[1672973388990,0.80177972,16840.0,16839.0,0.002]
[1672973389308,0.76677972,16840.0,16838.0,0.78970921]
[1672973389518,0.76877972,16840.0,16838.0,0.82570921]
[1672973389724,0.76677972,16840.0,16838.0,0.78970921]
[1672973389941,0.80177972,16840.0,16839.0,0.002]
[1672973390996,0.76677972,16840.0,16838.0,0.78970921]
[1672973391197,0.76877972,16840.0,16838.0,0.82570921]
[1672973391407,0.76877972,16840.0,16838.0,0.78970921]
[1672973391627,0.80177972,16840.0,16839.0,0.002]
[1672973392053,0.76677972,16840.0,16838.0,0.7007]
[1672973392262,0.76877972,16840.0,16838.0,0.7367]
[1672973392470,0.76677972,16840.0,16838.0,0.7007]
[1672973392685,0.80177972,16840.0,16839.0,0.002]
[1672973393093,0.56877972,16840.0,16838.0,0.7367]
[1672973393526,0.56877972,16840.0,16838.0,0.7007]
[1672973393527,0.56677972,16840.0,16838.0,0.7007]
[1672973393839,0.60177972,16840.0,16839.0,0.002]
[1672973394677,0.56677972,16840.0,16838.0,0.78970921]
[1672973394999,0.56877972,16840.0,16838.0,0.82570921]
[1672973395315,0.60177972,16840.0,16839.0,0.002]
[1672973395838,0.56877972,16840.0,16838.0,0.82570921]
[1672973396250,0.60177972,16840.0,16839.0,0.002]
[1672973397413,0.56677972,16840.0,16838.0,0.78970921]
[1672973398256,0.60177972,16840.0,16839.0,0.002]
[1672973398566,0.60177972,16840.0,16838.0,0.78970921]
[1672973398781,0.56877972,16840.0,16838.0,0.82570921]
[1672973398988,0.56877972,16840.0,16839.0,0.08900921]
[1672973399194,0.56677972,16840.0,16839.0,0.08900921]
[1672973399404,0.60177972,16840.0,16839.0,0.09100921]
[1672973399728,0.60177972,16840.0,16839.0,0.39170921]
[1672973400455,0.56877972,16840.0,16839.0,0.52321257]
[1672973400666,0.56877972,16840.0,16839.0,0.38970921]
[1672973401289,0.60177972,16840.0,16839.0,0.39170921]
[1672973402878,0.60177972,16840.0,16839.0,0.52521257]
[1672973403092,0.60177972,16840.0,16839.0,0.39170921]
[1672973403515,0.60177972,16840.0,16839.0,0.09100921]
[1672973403720,0.60177972,16840.0,16839.0,0.22451257]
[1672973403937,0.60177972,16840.0,16839.0,0.52521257]
[1672973404672,0.60177972,16840.0,16839.0,0.39170921]
[1672973406348,0.60177972,16840.0,16839.0,0.09100921]
[1672973406982,0.60177972,16840.0,16839.0,0.39170921]
[1672973408876,0.60177972,16840.0,16839.0,0.09100921]
[1672973411179,0.60177972,16840.0,16839.0,0.39170921]
[1672973414129,0.60177972,16840.0,16839.0,0.3027]
[1672973421286,0.60177972,16840.0,16839.0,0.00182848]
[1672973421497,0.60177972,16840.0,16839.0,0.39153769]
[1672973422224,0.60177972,16840.0,16839.0,0.09083769]
[1672973422432,0.60177972,16840.0,16839.0,0.39153769]
[1672973426435,0.60177972,16840.0,16839.0,0.30252848]
[1672973427073,0.60177972,16840.0,16839.0,0.39153769]
[1672973428005,0.60177972,16840.0,16839.0,0.09083769]
[1672973429269,0.60177972,16840.0,16839.0,0.00182848]
[1672973444622,0.90247972,16840.0,16839.0,0.00182848]
[1672973448197,0.60177972,16840.0,16839.0,0.00182848]
[1672973450093,0.60177972,16840.0,16839.0,0.30252848]
[1672973454503,0.60177972,16840.0,16839.0,0.39153769]
[1672973455132,0.60177972,16840.0,16839.0,0.30252848]
[1672973458601,0.60177972,16840.0,16839.0,0.00182848]
[1672973458813,0.60177972,16840.0,16839.0,0.30252848]
[1672973461136,0.60177972,16840.0,16839.0,0.39153769]
[1672973463242,0.60177972,16840.0,16839.0,0.30252848]
[1672973463452,0.60177972,16840.0,16839.0,0.39153769]
[1672973466602,0.60177972,16840.0,16839.0,0.30252848]
[1672973470493,0.60177972,16840.0,16839.0,0.30238721]
[1672973473543,0.60158787,16840.0,16839.0,0.30238721]
[1672973474177,0.60158787,16840.0,16839.0,0.39139642]
[1672973475644,0.60158787,16840.0,16839.0,0.52489978]
[1672973478487,0.60158787,16840.0,16839.0,0.39139642]
[1672973479429,0.60158787,16840.0,16839.0,0.52489978]
[1672973479849,0.60158787,16840.0,16839.0,0.82559978]
[1672973480276,0.60158787,16840.0,16839.0,0.69209642]
[1672973481535,0.60158787,16840.0,16839.0,0.60308721]
[1672973489100,0.60158787,16840.0,16839.0,0.82559978]
[1672973491206,0.60158787,16840.0,16839.0,0.52489978]
[1672973492890,0.60158787,16840.0,16839.0,0.22419978]
[1672973493105,0.60158787,16840.0,16839.0,0.52489978]
[1672973495094,0.60158787,16840.0,16839.0,0.22419978]
[1672973495425,0.60158787,16840.0,16839.0,0.52489978]
[1672973496582,0.60158787,16840.0,16839.0,0.39119121]
[1672973497003,0.60158787,16840.0,16839.0,0.30238721]
[1672973499737,0.60158787,16840.0,16839.0,0.39119121]
[1672973501939,0.60158787,16840.0,16839.0,0.30238721]
[1672973502263,0.60158787,16840.0,16839.0,0.39119121]
[1672973504157,0.60158787,16840.0,16839.0,0.43589057]
[1672973506252,0.60158787,16840.0,16839.0,0.52472412]
[1672973506564,0.60158787,16840.0,16839.0,0.52472826]
[1672973506774,0.60158787,16840.0,16839.0,0.43589057]
[1672973510447,0.60158787,16840.0,16839.0,0.52473867]
[1672973510663,0.60158787,16840.0,16839.0,0.43589057]
[1672973511080,0.60158787,16840.0,16839.0,0.52473877]
[1672973511610,0.60158787,16840.0,16839.0,0.30238721]
[1672973512555,0.60158787,16840.0,16839.0,0.39123541]
[1672973516761,0.60158787,16840.0,16839.0,0.09053541]
[1672973517180,0.60158787,16840.0,16839.0,0.39123541]
[1672973518753,0.60158787,16840.0,16839.0,0.30238721]
[1672973519178,0.60158787,16840.0,16839.0,0.52473877]
[1672973521073,0.60158787,16840.0,16839.0,0.52474391]
[1672973521603,0.60158787,16840.0,16839.0,0.52474679]
[1672973522647,0.60158787,16840.0,16839.0,0.39124343]
[1672973526652,0.60158787,16840.0,16839.0,0.30238721]
[1672973527389,0.60158787,16840.0,16839.0,0.30225499]
[1672973532007,0.60158787,16840.0,16839.0,0.00155499]
[1672973534211,0.60158787,16840.0,16839.0,0.22391457]
[1672973535687,0.60158787,16840.0,16839.0,0.13505835]
[1672973537685,0.60158787,16840.0,16839.0,0.43575835]
[1672973540841,0.60158787,16840.0,16839.0,0.13505835]
[1672973541053,0.60158787,16840.0,16839.0,0.43575835]
[1672973544418,0.60158787,16840.0,16839.0,0.52461087]
[1672973544628,0.60158787,16840.0,16839.0,0.43575835]
[1672973544946,0.60158787,16840.0,16839.0,0.52461203]
[1672973546633,0.60158787,16840.0,16839.0,0.22391203]
[1672973549262,0.60158787,16840.0,16839.0,0.00155499]
[1672973550938,0.60158787,16840.0,16839.0,0.09040867]
[1672973551878,0.60158787,16840.0,16839.0,0.00155499]
[1672973552089,0.60158787,16840.0,16839.0,0.39110867]
[1672973552618,0.60158787,16840.0,16839.0,0.30225499]
[1672973552836,0.60158787,16840.0,16839.0,0.39110867]
[1672973553059,0.60158787,16840.0,16839.0,0.09040867]
[1672973553355,0.60158787,16840.0,16839.0,0.39110867]
[1672973554095,0.60158787,16840.0,16839.0,0.30225499]
[1672973556724,0.60158787,16840.0,16839.0,0.52461203]
[1672973557666,0.60158787,16840.0,16839.0,0.43575835]
[1672973559969,0.60158787,16840.0,16839.0,0.13505835]
[1672973560190,0.60158787,16840.0,16839.0,0.43575835]
[1672973562935,0.60158787,16840.0,16839.0,0.61401188]
[1672973563145,0.60158787,16840.0,16839.0,0.43575835]
[1672973563556,0.60158787,16840.0,16839.0,0.61401188]
[1672973564192,0.60158787,16840.0,16839.0,0.39114327]
[1672973566188,0.60158787,16840.0,16839.0,0.09044327]
[1672973566405,0.60158787,16840.0,16839.0,0.39114327]
[1672973569241,0.60158787,16840.0,16839.0,0.52464663]
[1672973570919,0.60158787,16840.0,16839.0,0.22394663]
[1672973571124,0.60158787,16840.0,16839.0,0.52464663]
[1672973571760,0.60158787,16840.0,16839.0,0.97192651]
[1672973572400,0.60158787,16840.0,16839.0,0.31318887]
[1672973572608,0.60158787,16840.0,16839.0,0.61388887]
[1672973573134,0.60158787,16840.0,16839.0,0.97192868]
[1672973576490,0.60158787,16840.0,16839.0,0.9717644]
[1672973577968,0.60158787,16840.0,16839.0,0.6710644]
[1672973578174,0.60158787,16840.0,16839.0,0.9717644]
[1672973579019,0.60158787,16840.0,16839.0,1.10514985]
[1672973579440,0.60158787,16840.0,16839.0,0.52439902]
[1672973580804,0.60158787,16840.0,16839.0,0.39101357]
[1672973586692,0.60158787,16840.0,16839.0,0.52439902]
[1672973586912,0.60158787,16840.0,16839.0,1.10514895]
[1672973587846,0.60158787,16840.0,16839.0,0.61372969]
[1672973588057,0.60158787,16840.0,16839.0,0.43547616]
[1672973588690,0.60158787,16840.0,16839.0,0.61372969]
[1672973588906,0.60158787,16840.0,16839.0,1.10514779]
[1672973589115,0.60158787,16840.0,16839.0,0.61372969]
[1672973589318,0.60158787,16840.0,16839.0,0.97176216]
[1672973591953,0.60158787,16840.0,16839.0,1.10518989]
[1672973593635,0.60158787,16840.0,16839.0,0.97176216]
[1672973594479,0.60158787,16840.0,16839.0,0.52449281]
[1672973598803,0.60158787,16840.0,16839.0,0.39105155]
[1672973599323,0.60158787,16840.0,16839.0,0.52449281]
[1672973599530,0.60158787,16840.0,16839.0,0.39105155]
[1672973599952,0.60158787,16840.0,16839.0,0.52449281]
[1672973601938,0.60158787,16840.0,16839.0,0.97176429]
[1672973603411,0.60158787,16840.0,16839.0,1.10521699]
[1672973603618,0.60158787,16840.0,16839.0,1.10521277]
[1672973603828,0.60158787,16840.0,16839.0,0.97176429]
[1672973604255,0.60158787,16840.0,16839.0,1.10522187]
[1672973604676,0.60158787,16840.0,16839.0,0.97176429]
[1672973609524,0.60158787,16840.0,16839.0,0.52455698]
[1672973611831,0.60158787,16840.0,16839.0,0.39107722]
[1672973614977,0.60158787,16840.0,16839.0,0.09037722]
[1672973615194,0.60158787,16840.0,16839.0,0.39107722]
[1672973616353,0.60158787,16840.0,16839.0,0.52455698]
[1672973616560,0.60158787,16840.0,16839.0,0.39107722]
[1672973617089,0.60158787,16840.0,16839.0,0.43557047]
[1672973617299,0.60158787,16840.0,16839.0,0.52456704]
[1672973617927,0.60158787,16840.0,16839.0,0.43557047]
[1672973618561,0.60158787,16840.0,16839.0,0.52457035]
[1672973618978,0.60158787,16840.0,16839.0,0.39109059]
[1672973621092,0.60158787,16840.0,16839.0,0.09039059]
[1672973622756,0.60158787,16840.0,16839.0,0.09027344]
[1672973625489,0.60158787,16840.0,16839.0,0.00127356]
[1672973628547,0.60158787,16840.0,16839.0,0.09027344]
[1672973630017,0.60158787,16840.0,16839.0,0.00127356]
[1672973630642,0.60158787,16840.0,16839.0,0.09027344]
[1672973632128,0.60158787,16840.0,16839.0,0.00127356]
[1672973639593,0.60158787,16840.0,16839.0,0.2237532]
[1672973640007,0.60158787,16840.0,16839.0,0.13475332]
[1672973640329,0.60158787,16840.0,16839.0,0.67092506]
[1672973641586,0.03480815,16840.0,16839.0,0.89373942]
[1672973641794,0.002,16840.0,16839.0,0.74921233]
[1672973642002,0.002,16840.0,16839.0,0.70427248]
[1672973642219,0.56677972,16842.0,16839.0,0.89208684]
[1672973642432,0.56677972,16842.0,16841.0,0.38963633]
[1672973642627,0.56677972,16842.0,16841.0,0.68963633]
[1672973643264,0.56677972,16842.0,16841.0,0.82304082]
[1672973643479,0.63777972,16842.0,16841.0,0.83204082]
[1672973643796,0.63777972,16842.0,16841.0,1.221679]
[1672973644001,0.63777972,16842.0,16841.0,1.71301779]
[1672973644208,0.63777972,16842.0,16841.0,1.5796133]
[1672973644531,0.56677972,16842.0,16841.0,1.5706133]
[1672973644730,0.60577972,16842.0,16841.0,1.5726133]
[1672973644938,0.56677972,16842.0,16841.0,1.5706133]
[1672973645152,0.56877972,16842.0,16841.0,1.6016133]
[1672973645577,0.56877972,16842.0,16841.0,1.73479916]
[1672973645786,0.56877972,16842.0,16841.0,1.6016133]
[1672973646107,0.56877972,16842.0,16841.0,1.73479844]
[1672973646629,0.56877972,16842.0,16841.0,1.24345965]
[1672973647043,0.56877972,16842.0,16841.0,1.02119233]
[1672973647680,0.56877972,16842.0,16841.0,0.9324]
[1672973657980,0.56877972,16842.0,16841.0,0.6317]
[1672973658616,0.56877972,16842.0,16841.0,0.72049233]
[1672973660601,0.56877972,16842.0,16841.0,0.6317]
[1672973661236,0.56877972,16842.0,16841.0,0.72049233]
[1672973661551,0.56877972,16842.0,16841.0,1.02119233]
[1672973663661,0.56877972,16842.0,16841.0,0.9324]
[1672973664403,0.56877972,16842.0,16841.0,1.02119233]
[1672973669126,0.56877972,16842.0,16841.0,1.15437747]
[1672973669549,0.56877972,16842.0,16841.0,0.9324]
[1672973669972,0.56877972,16842.0,16841.0,0.331]
[1672973670184,0.56877972,16842.0,16841.0,0.9324]
[1672973672811,0.56877972,16842.0,16841.0,1.02119233]
[1672973673023,0.56877972,16842.0,16841.0,0.9324]
[1672973673232,0.56877972,16842.0,16841.0,1.02119233]
[1672973673654,0.56877972,16842.0,16841.0,1.02108035]
[1672973675757,0.56869516,16842.0,16841.0,1.02108035]
[1672973677228,0.56869516,16842.0,16841.0,1.60148981]
[1672973678901,0.56869516,16842.0,16841.0,2.19548981]
[1672973679328,0.56869516,16842.0,16841.0,2.24042966]
[1672973683316,0.56869516,16842.0,16841.0,2.41827996]
[1672973684481,0.56869516,16842.0,16841.0,2.55170021]
[1672973684800,0.56869516,16842.0,16841.0,2.32888585]
[1672973684998,0.56869516,16842.0,16841.0,2.1954656]
[1672973690785,0.56869516,16842.0,16841.0,1.5940656]
[1672973691101,0.56869516,16842.0,16841.0,2.1954656]
[1672973691724,0.56869516,16842.0,16841.0,1.65970351]
[1672973692145,0.56869516,16842.0,16841.0,2.19548709]
[1672973696782,0.56869516,16842.0,16841.0,0.76503471]
[1672973697193,0.56869516,16842.0,16841.0,0.85400781]
[1672973698466,0.56869516,16842.0,16841.0,0.72056112]
[1672973699514,0.56869516,16842.0,16841.0,0.63158802]
[1672973704667,0.56869516,16842.0,16841.0,0.33088802]
[1672973704981,0.56869516,16842.0,16841.0,0.63158802]
[1672973705406,0.56869516,16842.0,16841.0,0.33088802]
[1672973705619,0.56869516,16842.0,16841.0,0.63158802]
[1672973706987,0.56869516,16842.0,16841.0,0.72056112]
[1672973708881,0.56869516,16842.0,16841.0,0.41986112]
[1672973709196,0.56869516,16842.0,16841.0,0.72056112]
[1672973714576,0.56869516,16842.0,16841.0,0.63158802]
[1672973722648,0.56869516,16842.0,16841.0,0.72056112]
[1672973728638,0.56869516,16842.0,16841.0,0.85400781]
[1672973729166,0.56869516,16842.0,16841.0,0.72056112]
[1672973729570,0.56869516,16842.0,16841.0,0.63158802]
[1672973729786,0.56869516,16842.0,16841.0,0.33088802]
[1672973730100,0.56869516,16842.0,16841.0,0.63158802]
[1672973730520,0.56869516,16842.0,16841.0,0.63144865]
[1672973732633,0.56869516,16842.0,16841.0,0.72042175]
[1672973737144,0.56869516,16842.0,16841.0,1.30064801]
[1672973740923,0.56869516,16842.0,16841.0,0.99994801]
[1672973741139,0.56869516,16842.0,16841.0,1.30064801]
[1672973741347,0.56869516,16842.0,16841.0,1.43404118]
[1672973742714,0.56869516,16842.0,16841.0,1.30064801]
[1672973744712,0.56869516,16842.0,16841.0,0.76481174]
[1672973744914,0.56869516,16842.0,16841.0,0.94266204]
[1672973745133,0.56869516,16842.0,16841.0,1.43399479]
[1672973745342,0.56869516,16842.0,16841.0,0.94266204]
[1672973746500,0.56869516,16842.0,16841.0,0.76481174]
[1672973746708,0.56869516,16842.0,16841.0,0.46411174]
[1672973746913,0.56869516,16842.0,16841.0,1.06551174]
[1672973748918,0.56869516,16842.0,16841.0,0.46411174]
[1672973749121,0.56869516,16842.0,16841.0,1.06551174]
[1672973752276,0.56869516,16842.0,16841.0,1.60133552]
[1672973752487,0.56869516,16842.0,16841.0,1.73466851]
[1672973752696,0.56869516,16842.0,16841.0,1.73466712]
[1672973753117,0.56869516,16842.0,16841.0,1.73467374]
[1672973754167,0.56869516,16842.0,16841.0,1.60134214]
[1672973757644,0.56869516,16842.0,16841.0,0.99994214]
[1672973757841,0.56869516,16842.0,16841.0,1.60134214]
[1672973761108,0.56869516,16842.0,16841.0,0.99994214]
[1672973761317,0.56869516,16842.0,16841.0,1.60134214]
[1672973761521,0.56869516,16842.0,16841.0,0.99994214]
[1672973761737,0.56869516,16842.0,16841.0,1.60134214]
[1672973763940,0.56869516,16842.0,16841.0,0.99994214]
[1672973764261,0.56869516,16842.0,16841.0,1.2227565]
[1672973764472,0.56869516,16842.0,16841.0,1.60134214]
[1672973764892,0.56869516,16842.0,16841.0,0.99994214]
[1672973765412,0.56869516,16842.0,16841.0,1.60134214]
[1672973765627,0.56869516,16842.0,16841.0,0.99994214]
[1672973765938,0.56869516,16842.0,16841.0,1.8241565]
[1672973766564,0.56869516,16842.0,16841.0,1.6463062]
[1672973767198,0.56869516,16842.0,16841.0,1.60126298]
[1672973767512,0.56869516,16842.0,16841.0,1.82407734]
[1672973768355,0.56869516,16842.0,16841.0,1.60126298]
[1672973768670,0.56869516,16842.0,16841.0,1.82407734]
[1672973769711,0.56869516,16842.0,16841.0,1.60126298]
[1672973770984,0.48445216,16842.0,16841.0,2.41807734]
[1672973771191,0.48445216,16842.0,16841.0,2.2403062]
[1672973772139,0.48445216,16842.0,16841.0,2.41813139]
[1672973772667,0.48445216,16842.0,16841.0,2.2403062]
[1672973773297,0.00191544,16842.0,16841.0,2.2403062]
[1672973775296,0.00191544,16842.0,16841.0,2.2397268]
[1672973778963,0.00191544,16842.0,16841.0,2.41750433]
[1672973779294,0.00191544,16842.0,16841.0,2.19526937]
[1672973780653,0.00191544,16842.0,16841.0,2.41750433]
[1672973781709,0.00191544,16842.0,16841.0,2.2397268]
[1672973781916,0.00191544,16842.0,16841.0,2.41753883]
[1672973782239,0.00191544,16842.0,16841.0,2.19530387]
[1672973782858,0.00191544,16842.0,16841.0,1.59390387]
[1672973783069,0.00191544,16842.0,16841.0,2.19530387]
[1672973783916,0.00191544,16842.0,16841.0,2.19508083]
[1672973785066,0.00191544,16842.0,16841.0,2.41731579]
[1672973786019,0.00191544,16842.0,16841.0,1.81591579]
[1672973786222,0.00191544,16842.0,16841.0,2.41731579]
[1672973789693,0.00191544,16842.0,16841.0,2.23950376]
[1672973797779,0.56869516,16842.0,16841.0,2.23950376]
[1672973804076,0.56869516,16842.0,16841.0,1.93880376]
[1672973804293,0.56869516,16842.0,16841.0,2.23950376]
[1672973809135,0.56869516,16842.0,16841.0,2.41739122]
[1672973809666,0.56869516,16842.0,16841.0,2.19515626]
[1672973810717,0.56869516,16842.0,16841.0,2.32855922]
[1672973810928,0.56869516,16842.0,16841.0,2.19515626]
[1672973816918,0.56869516,16842.0,16841.0,2.41739122]
[1672973819865,0.56869516,16842.0,16841.0,2.23950376]
[1672973820276,0.56869516,16842.0,16841.0,2.41735641]
[1672973820486,0.56869516,16842.0,16841.0,2.23950376]
[1672973820692,0.56869516,16842.0,16841.0,2.41735437]
[1672973823646,0.56869516,16842.0,16841.0,2.23950376]
[1672973823857,0.56869516,16842.0,16841.0,2.41735803]
[1672973824486,0.56869516,16842.0,16841.0,2.23950376]
[1672973824805,0.56869516,16842.0,16841.0,1.63810376]
[1672973825015,0.56869516,16842.0,16841.0,2.41736179]
[1672973825333,0.56869516,16842.0,16841.0,2.23950376]
[1672973826169,0.56869516,16842.0,16841.0,2.41736234]
[1672973827133,0.56869516,16842.0,16841.0,2.23950376]
[1672973827650,0.56869516,16842.0,16841.0,2.41736655]
[1672973828062,0.56869516,16842.0,16841.0,2.41736408]
[1672973828693,0.56869516,16842.0,16841.0,2.23950376]
[1672973829956,0.56869516,16842.0,16841.0,2.4173661]
[1672973830277,0.56869516,16842.0,16841.0,2.19513114]
[1672973830802,0.56869516,16842.0,16841.0,2.4173661]
[1672973832070,0.56869516,16842.0,16841.0,2.23950376]
[1672973832380,0.56869516,16842.0,16841.0,2.41736277]
[1672973832906,0.56869516,16842.0,16841.0,2.23950376]
[1672973836790,0.56869516,16842.0,16841.0,1.63810376]
[1672973837111,0.56869516,16842.0,16841.0,2.23950376]
[1672973838265,0.56869516,16842.0,16841.0,2.23940215]
[1672973839944,0.56860044,16842.0,16841.0,2.23940215]
[1672973842565,0.56860044,16842.0,16841.0,2.01716719]
[1672973843410,0.56860044,16842.0,16841.0,2.23940822]
[1672973844678,0.56860044,16842.0,16841.0,2.01716719]
[1672973845516,0.56860044,16842.0,16841.0,2.23938819]
[1672973846145,0.56860044,16842.0,16841.0,2.01716719]
[1672973846357,0.56860044,16842.0,16841.0,2.23938344]
[1672973851101,0.56860044,16842.0,16841.0,2.01716719]
[1672973851304,0.5452064,16842.0,16841.0,2.01716719]
[1672973851824,0.51428967,16842.0,16841.0,2.01716719]
[1672973852255,0.51428967,16842.0,16841.0,2.28434396]
[1672973854044,0.51428967,16842.0,16841.0,2.01716719]
[1672973857614,0.48497167,16842.0,16841.0,2.01716719]
[1672973857823,0.50257167,16843.0,16841.0,2.28434396]
[1672973858036,0.50257167,16843.0,16842.0,1.08534319]
[1672973859082,0.54057167,16843.0,16842.0,1.08734319]
[1672973859295,0.54057167,16843.0,16842.0,1.3093517]
[1672973859612,0.54057167,16843.0,16842.0,1.08734319]
[1672973861612,0.54057167,16843.0,16842.0,1.30931196]
[1672973870127,0.54057167,16843.0,16842.0,1.91071196]
[1672973873685,0.54057167,16843.0,16842.0,2.08830554]
[1672973874644,0.54057167,16843.0,16842.0,1.86633677]
[1672973876533,0.54057167,16843.0,16842.0,2.08830554]
[1672973877372,0.54057167,16843.0,16842.0,1.91071196]
[1672973879885,0.54057167,16843.0,16842.0,1.30931196]
[1672973880102,0.54057167,16843.0,16842.0,1.91071196]
[1672973890080,0.54057167,16843.0,16842.0,1.61001196]
[1672973890296,0.54057167,16843.0,16842.0,1.91071196]
[1672973895028,0.54057167,16843.0,16842.0,1.68874319]
[1672973897643,0.54057167,16843.0,16842.0,1.91097183]
[1672973906478,0.54057167,16843.0,16842.0,1.91077294]
[1672973906899,0.54057167,16843.0,16842.0,2.08859164]
[1672973907111,0.54057167,16843.0,16842.0,1.91077294]
[1672973907633,0.54057167,16843.0,16842.0,2.08857986]
[1672973908891,0.54057167,16843.0,16842.0,1.91077294]
[1672973909650,0.54057167,16843.0,16842.0,2.08858194]
[1672973909852,0.54057167,16843.0,16842.0,1.91077294]
[1672973919515,0.54057167,16843.0,16842.0,2.08859153]
[1672973919734,0.54057167,16843.0,16842.0,1.86636289]
[1672973922787,0.54057167,16843.0,16842.0,1.26496289]
[1672973922994,0.54057167,16843.0,16842.0,1.56566289]
[1672973923417,0.54057167,16843.0,16842.0,1.69901768]
[1672973923834,0.54057167,16843.0,16842.0,1.20787338]
[1672973924359,0.54057167,16843.0,16842.0,1.69918398]
[1672973925197,0.54057167,16843.0,16842.0,1.20787338]
[1672973925409,0.54057167,16843.0,16842.0,1.03005479]
[1672973926782,0.54057167,16843.0,16842.0,0.43605479]
[1672973928355,0.54057167,16843.0,16842.0,0.97182493]
[1672973929618,0.54057167,16843.0,16842.0,1.10513465]
[1672973929833,0.54057167,16843.0,16842.0,0.97182493]
[1672973933609,0.54057167,16843.0,16842.0,1.27252493]
[1672973938643,0.54057167,16843.0,16842.0,1.40586965]
[1672973939176,0.54057167,16843.0,16842.0,0.91456331]
[1672973939591,0.54057167,16843.0,16842.0,1.40587037]
[1672973939801,0.54057167,16843.0,16842.0,0.73674472]
[1672973940644,0.54057167,16843.0,16842.0,0.82564737]
[1672973941063,0.54057167,16843.0,16842.0,0.82564873]
[1672973941482,0.54057167,16843.0,16842.0,0.73674472]
[1672973944536,0.54057167,16843.0,16842.0,0.91456331]
[1672973944747,0.54057167,16843.0,16842.0,0.73674472]
[1672973945587,0.54057167,16843.0,16842.0,0.91456331]
[1672973945794,0.54057167,16843.0,16842.0,1.40586586]
[1672973946319,0.54057167,16843.0,16842.0,1.4058667]
[1672973947269,0.54057167,16843.0,16842.0,1.27252198]
[1672973948003,0.54057167,16843.0,16842.0,0.97182198]
[1672973948740,0.51128967,16843.0,16842.0,0.97182198]
[1672973951052,0.51128967,16843.0,16842.0,1.1051936]
[1672973951578,0.51128967,16843.0,16842.0,0.61389021]
[1672973951992,0.51128967,16843.0,16842.0,0.43607162]
[1672973952942,0.51128967,16843.0,16842.0,0.97182784]
[1672973954511,0.51128967,16843.0,16842.0,1.10518964]
[1672973954929,0.51128967,16843.0,16842.0,0.4360618]
[1672973956089,0.51128967,16843.0,16842.0,0.1353618]
[1672973956298,0.51128967,16843.0,16842.0,0.4360618]
[1672973957981,0.51128967,16843.0,16842.0,0.1353618]
[1672973958197,0.51128967,16843.0,16842.0,0.4360618]
[1672973962722,0.51128967,16843.0,16842.0,0.97183452]
[1672973962927,0.51128967,16843.0,16842.0,1.10522504]
[1672973964506,0.51128967,16843.0,16842.0,1.10522408]
[1672973964716,0.51128967,16843.0,16842.0,0.61390815]
[1672973965451,0.51128967,16843.0,16842.0,1.10522258]
[1672973965985,0.51128967,16843.0,16842.0,0.97183302]
[1672973969859,0.51128967,16843.0,16842.0,0.61390075]
[1672973971859,0.51128967,16843.0,16842.0,0.43608216]
[1672973972488,0.51128967,16843.0,16842.0,0.13538216]
[1672973972701,0.51128967,16843.0,16842.0,0.43608216]
[1672973973440,0.51128967,16843.0,16842.0,0.61390075]
[1672973974069,0.51128967,16843.0,16842.0,0.43608216]
[1672973974270,0.51128967,16843.0,16842.0,0.61390075]
[1672973975741,0.51128967,16843.0,16842.0,0.43608216]
[1672973976170,0.51128967,16843.0,16842.0,0.61390075]
[1672973977427,0.51128967,16843.0,16842.0,0.97182687]
[1672973978067,0.51128967,16843.0,16842.0,0.67112687]
[1672973978265,0.51128967,16843.0,16842.0,1.27252687]
[1672973984895,0.51128967,16843.0,16842.0,1.40593164]
[1672973986365,0.51128967,16843.0,16842.0,0.91462336]
[1672973986680,0.51128967,16843.0,16842.0,0.73680477]
[1672973987102,0.51128967,16843.0,16842.0,0.91462336]
[1672973987316,0.51128967,16843.0,16842.0,1.40593584]
[1672973987527,0.51128967,16843.0,16842.0,0.73680477]
[1672973991204,0.51128967,16843.0,16842.0,0.82575908]
[1672973991948,0.51128967,16843.0,16842.0,0.82574876]
[1672973992486,0.51128967,16843.0,16842.0,0.73680477]
[1672973993524,0.51128967,16843.0,16842.0,0.73664214]
[1672973993735,0.038,16843.0,16842.0,0.73664214]
[1672973993953,0.51128967,16843.0,16842.0,0.73664214]
[1672973994160,0.038,16843.0,16842.0,0.91446073]
[1672973994372,0.038,16843.0,16842.0,1.27237053]
[1672973994373,0.51128967,16843.0,16842.0,1.27237053]
[1672973994577,0.51122526,16843.0,16842.0,1.27237053]
[1672973995211,0.03793559,16843.0,16842.0,1.49459917]
[1672973995421,0.51122526,16843.0,16842.0,1.49459917]
[1672973996362,0.03793559,16843.0,16842.0,1.49459917]
[1672973997215,0.03793559,16843.0,16842.0,1.27237053]
[1672974000980,0.03793559,16843.0,16842.0,1.40574366]
[1672974002053,0.03793559,16843.0,16842.0,0.91442909]
[1672974002770,0.51122526,16843.0,16842.0,1.27235567]
[1672974004148,0.51122526,16843.0,16842.0,0.73662184]
[1672974007084,0.51122526,16843.0,16842.0,0.82555011]
[1672974007504,0.51122526,16843.0,16842.0,1.27237743]
[1672974009918,0.51122526,16843.0,16842.0,1.40576325]
[1672974011182,0.51122526,16843.0,16842.0,0.91444178]
[1672974011600,0.51122526,16843.0,16842.0,1.40575964]